fUSD/lending_fUSD_20251103
["ID","MTS","AMOUNT","RATE_DAILY","PERIOD"]
[392965104,1762185042274,-150.0,0.00022522,4]
[392965107,1762185042283,-150.0,0.00022522,4]
[392965109,1762185042293,-150.0,0.0002254,4]
[392965112,1762185042305,-150.0,0.0002254,4]
[392965114,1762185042314,-150.0,0.00022563,4]
[392965117,1762185042323,-150.0,0.00022572,4]
[392965120,1762185042332,-40171.9739756,0.00022584,2]
[392965122,1762185042342,-27254.5223988,0.00022584,2]
[392965124,1762185042351,-7415.7274957,0.00022584,2]
[392965126,1762185042360,-173082.8245082,0.00022584,2]
[392965127,1762185042369,-48752.6909707,0.00022584,2]
[392965128,1762185042378,-150.0,0.00022597,4]
[392965130,1762185042388,-150.0,0.00022601,4]
[392965131,1762185042398,-150.0,0.00022607,4]
[392965133,1762185042407,-150.0,0.00022625,4]
[392965134,1762185042416,-150.0,0.00022625,4]
[392965135,1762185042425,-150.0,0.00022653,4]
[392965136,1762185042434,-150.0,0.00022653,4]
[392965138,1762185042443,-150.0,0.00022657,4]
[392965139,1762185042453,-150.0,0.00022687,4]
[392965140,1762185042462,-150.0,0.00022697,4]
[392965141,1762185042471,-150.0,0.0002271,4]
[392965145,1762185042480,-150.0,0.00022728,4]
[392965149,1762185042490,-150.0,0.00022728,4]
[392965151,1762185042499,-150.0,0.00022728,4]
[392965154,1762185042508,-150.0,0.00022728,4]
[392965155,1762185042517,-150.0,0.00022743,4]
[392965156,1762185042526,-150.0,0.00022753,4]
[392965157,1762185042535,-150.0,0.00022766,4]
[392965158,1762185042544,-150.0,0.00022766,4]
[392965159,1762185042560,-150.0,0.00022792,4]
[392965160,1762185042570,-150.0,0.00022811,4]
[392965162,1762185042579,-150.0,0.00022811,4]
[392965165,1762185042590,-150.0,0.00022822,4]
[392965169,1762185042601,-150.0,0.00022828,4]
[392965172,1762185042610,-150.0,0.00022832,4]
[392965177,1762185042620,-150.0,0.00022879,4]
[392965182,1762185042629,-150.0,0.00022879,4]
[392965186,1762185042639,-150.0,0.00022887,4]
[392965190,1762185042648,-150.0,0.00022898,4]
[392965194,1762185042658,-150.0,0.00022914,4]
[392965196,1762185042667,-150.0,0.00022935,4]
[392965200,1762185042676,-150.0,0.00022935,4]
[392965204,1762185042688,-150.0,0.00022935,4]
[392965206,1762185042699,-150.0,0.00022935,4]
[392965208,1762185042713,-150.0,0.00022935,4]
[392965210,1762185042722,-150.0,0.00022983,4]
[392965212,1762185042731,-150.0,0.00022991,4]
[392965214,1762185042740,-150.0,0.00022991,4]
[392965216,1762185042749,-150.0,0.00022999,4]
[392965218,1762185042759,-400.0,0.00023,2]
[392965220,1762185042768,-198.62,0.00023026,2]
[392965222,1762185042778,-150.0,0.00023038,4]
[392965224,1762185042788,-150.0,0.00023044,4]
[392965226,1762185042798,-150.0,0.00023048,4]
[392965228,1762185042813,-150.0,0.00023059,4]
[392965229,1762185042822,-150.0,0.00023078,4]
[392965230,1762185042831,-150.0,0.00023085,4]
[392965231,1762185042841,-150.0,0.00023104,4]
[392965232,1762185042850,-150.0,0.00023104,4]
[392965233,1762185042859,-162.39988429,0.00023107,2]
[392965234,1762185042868,-150.0,0.00023142,4]
[392965235,1762185042878,-150.0,0.00023142,4]
[392965236,1762185042887,-150.0,0.00023142,4]
[392965238,1762185042896,-150.0,0.00023142,4]
[392965240,1762185042905,-150.0,0.00023142,4]
[392965241,1762185042914,-409.99107432,0.00023159,2]
[392965242,1762185042923,-150.0,0.0002316,4]
[392965243,1762185042933,-5799.0,0.00023169,2]
[392965244,1762185042942,-150.0,0.0002317,4]
[392965245,1762185042951,-150.0,0.00023173,4]
[392965246,1762185042961,-150.0,0.00023183,4]
[392965247,1762185042970,-150.0,0.0002319,4]
[392965248,1762185042979,-150.0,0.00023217,4]
[392965250,1762185042988,-150.0,0.00023217,4]
[392965251,1762185042998,-150.0,0.00023245,4]
[392965252,1762185043007,-150.0,0.00023245,4]
[392965253,1762185043016,-150.0,0.00023256,4]
[392965254,1762185043025,-150.0,0.00023269,4]
[392965255,1762185043035,-150.0,0.00023273,4]
[392965256,1762185043045,-150.0,0.00023307,4]
[392965257,1762185043059,-150.0,0.00023307,4]
[392965258,1762185043069,-150.0,0.00023329,4]
[392965259,1762185043079,-150.0,0.00023329,4]
[392965261,1762185043089,-150.0,0.00023336,4]
[392965262,1762185043099,-150.0,0.00023341,4]
[392965263,1762185043109,-150.0,0.00023348,4]
[392965264,1762185043118,-150.0,0.00023348,4]
[392965266,1762185043128,-257.91778498,0.00023358,2]
[392965268,1762185043138,-642.94,0.00023358,2]
[392965270,1762185043148,-150.0,0.00023364,4]
[392965272,1762185043158,-150.0,0.00023386,4]
[392965274,1762185043168,-150.0,0.00023427,4]
[392965276,1762185043178,-150.0,0.00023431,4]
[392965278,1762185043188,-150.0,0.00023442,4]
[392965280,1762185043197,-150.0,0.00023442,4]
[392965282,1762185043207,-150.0,0.00023451,4]
[392965286,1762185043216,-150.0,0.00023459,4]
[392965289,1762185043226,-150.0,0.00023482,4]
[392965291,1762185043235,-150.0,0.00023498,4]
[392965295,1762185043244,-150.0,0.00023512,4]
[392965298,1762185043254,-150.0,0.00023555,4]
[392965300,1762185043264,-150.0,0.00023555,4]
[392965302,1762185043274,-150.0,0.00023555,4]
[392965304,1762185043284,-150.0,0.00023555,4]
[392965306,1762185043293,-150.0,0.00023555,4]
[392965308,1762185043306,-150.0,0.00023555,4]
[392965310,1762185043315,-150.0,0.00023555,4]
[392965312,1762185043325,-150.0,0.00023555,4]
[392965314,1762185043336,-150.0,0.00023555,4]
[392965316,1762185043345,-150.0,0.00023555,4]
[392965317,1762185043355,-150.0,0.00023598,4]
[392965318,1762185043364,-2000.0,0.000236,2]
[392965319,1762185043374,-150.0,0.00023611,4]
[392965320,1762185043384,-150.0,0.00023628,4]
[392965321,1762185043394,-150.0,0.0002365,4]
[392965322,1762185043403,-150.0,0.00023658,4]
[392965323,1762185043412,-150.0,0.00023667,4]
[392965324,1762185043421,-150.0,0.00023667,4]
[392965325,1762185043431,-150.0,0.00023679,4]
[392965326,1762185043440,-150.0,0.00023683,4]
[392965327,1762185043449,-150.0,0.00023724,4]
[392965328,1762185043459,-150.0,0.00023746,4]
[392965329,1762185043468,-150.0,0.00023761,4]
[392965330,1762185043478,-150.0,0.00023761,4]
[392965331,1762185043487,-150.0,0.00023769,4]
[392965332,1762185043496,-150.0,0.00023774,4]
[392965333,1762185043505,-150.0,0.0002378,4]
[392965334,1762185043515,-150.0,0.0002378,4]
[392965335,1762185043525,-150.0,0.00023803,4]
[392965336,1762185043534,-150.0,0.00023803,4]
[392965337,1762185043543,-150.0,0.00023837,4]
[392965338,1762185043558,-150.0,0.00023841,4]
[392965339,1762185043569,-150.0,0.00023854,4]
[392965340,1762185043578,-150.0,0.00023865,4]
[392965341,1762185043588,-150.0,0.00023865,4]
[392965342,1762185043597,-150.0,0.00023893,4]
[392965343,1762185043607,-150.0,0.00023893,4]
[392965344,1762185043617,-150.0,0.00023919,4]
[392965345,1762185043626,-150.0,0.00023927,4]
[392965346,1762185043635,-150.0,0.00023936,4]
[392965347,1762185043645,-150.0,0.0002394,4]
[392965348,1762185043654,-150.0,0.00023949,4]
[392965349,1762185043663,-150.0,0.00023968,4]
[392965350,1762185043672,-150.0,0.00023968,4]
[392965351,1762185043682,-150.0,0.00023968,4]
[392965352,1762185043691,-150.0,0.00023968,4]
[392965353,1762185043701,-150.0,0.00023968,4]
[392965354,1762185043715,-150.0,0.00024006,4]
[392965355,1762185043724,-150.0,0.00024006,4]
[392965356,1762185043734,-150.0,0.00024025,4]
[392965357,1762185043744,-1639.93346924,0.00024025,2]
[392965358,1762185043754,-4576.10204217,0.00024025,2]
[392965359,1762185043763,-150.0,0.00024032,4]
[392965360,1762185043773,-150.0,0.00024051,4]
[392965361,1762185043785,-150.0,0.00024062,4]
[392965362,1762185043794,-150.0,0.00024065,4]
[392965363,1762185043810,-150.0,0.00024071,4]
[392965364,1762185043819,-150.0,0.00024111,4]
[392965365,1762185043828,-150.0,0.00024118,4]
[392965366,1762185043838,-150.0,0.00024118,4]
[392965367,1762185043848,-150.0,0.00024127,4]
[392965368,1762185043858,-198.62,0.00024138,2]
[392965369,1762185043867,-150.0,0.00024175,4]
[392965370,1762185043876,-150.0,0.00024175,4]
[392965371,1762185043886,-150.0,0.00024175,4]
[392965372,1762185043895,-150.0,0.00024175,4]
[392965373,1762185044092,-150.0,0.00024175,4]
[392965374,1762185044126,-150.0,0.00024196,4]
[392965375,1762185044136,-150.0,0.00024211,4]
[392965376,1762185044146,-150.0,0.00024222,4]
[392965377,1762185044155,-150.0,0.00024231,4]
[392965378,1762185044165,-150.0,0.00024231,4]
[392965379,1762185044175,-150.0,0.00024278,4]
[392965380,1762185044185,-150.0,0.00024282,4]
[392965381,1762185044194,-150.0,0.00024287,4]
[392965382,1762185044203,-163.42953466,0.00024289,2]
[392965383,1762185044213,-150.0,0.00024299,4]
[392965384,1762185044223,-150.0,0.00024299,4]
[392965385,1762185044233,-150.0,0.00024318,4]
[392965386,1762185044243,-150.0,0.00024344,4]
[392965387,1762185044252,-150.0,0.00024344,4]
[392965388,1762185044263,-150.0,0.00024357,4]
[392965389,1762185044273,-150.0,0.00024367,4]
[392965390,1762185044282,-150.0,0.00024381,4]
[392965391,1762185044292,-150.0,0.00024381,4]
[392965392,1762185044305,-150.0,0.00024381,4]
[392965393,1762185044315,-150.0,0.00024381,4]
[392965394,1762185044324,-150.0,0.000244,4]
[392965395,1762185044334,-150.0,0.00024413,4]
[392965396,1762185044343,-150.0,0.00024423,4]
[392965397,1762185044353,-150.0,0.00024453,4]
[392965398,1762185044363,-150.0,0.00024456,4]
[392965399,1762185044373,-150.0,0.00024456,4]
[392965400,1762185044383,-10878.1957439,0.00024456,2]
[392965401,1762185044393,-150.0,0.00024485,4]
[392965402,1762185044402,-150.0,0.00024485,4]
[392965403,1762185044412,-150.0,0.00024503,4]
[392965404,1762185044422,-150.0,0.00024508,4]
[392965405,1762185044431,-150.0,0.00024513,4]
[392965406,1762185044441,-824.36105474,0.00024514,2]
[392965407,1762185044450,-221.6410156,0.00024532,2]
[392965408,1762185044461,-150.0,0.00024538,4]
[392965409,1762185044470,-150.0,0.00024547,4]
[392965410,1762185044480,-150.0,0.00024569,4]
[392965411,1762185044489,-150.0,0.00024569,4]
[392965412,1762185044499,-4731.40423,0.0002458,2]
[392965413,1762185044509,-150.0,0.00024588,4]
[392965414,1762185044519,-150.0,0.00024588,4]
[392965415,1762185044529,-150.0,0.00024604,4]
[392965416,1762185044539,-150.0,0.00024624,4]
[392965417,1762185044553,-150.0,0.00024625,4]
[392965418,1762185044562,-150.0,0.00024649,4]
[392965419,1762185044571,-816.32,0.00024658,2]
[392965420,1762185044580,-66248.06032421,0.0002466,2]
[392965421,1762185044590,-40369.22387821,0.0002466,2]
[392965422,1762185044599,-150.0,0.00024671,4]
[392965423,1762185044608,-150.0,0.00024682,4]
[392965424,1762185044620,-150.0,0.00024682,4]
[392965425,1762185044630,-150.0,0.00024691,4]
[392965426,1762185044640,-150.0,0.00024699,4]
[392965427,1762185044650,-150.0,0.00024709,4]
[392965428,1762185044660,-267.46074303,0.00024727,2]
[392965429,1762185044671,-597.06,0.00024727,2]
[392965430,1762185044680,-150.0,0.00024738,4]
[392965431,1762185044690,-296.56440007,0.00024795,4]
[392965432,1762185044700,-251.62954776,0.00024795,4]
[392965433,1762185044714,-186.2923937,0.00024795,4]
[392965434,1762185044724,-152.45231427,0.00024795,4]
[392965435,1762185044733,-182.95396817,0.00024795,4]
[392965436,1762185044742,-170.53692264,0.00024795,4]
[392965437,1762185044754,-201.35070306,0.00024795,4]
[392965438,1762185044764,-157.82063715,0.00024795,4]
[392965439,1762185044773,-255.56280565,0.00024795,4]
[392965440,1762185044783,-287.16679279,0.00024795,4]
[392965441,1762185044792,-181.86436565,0.00024795,4]
[392965442,1762185044808,-151.8412202,0.00024795,4]
[392965443,1762185044819,-164.58940059,0.00024795,4]
[392965444,1762185044828,-150.00000001,0.00024795,4]
[392965445,1762185044838,-191.53775451,0.00024795,4]
[392965446,1762185044848,-181.26603437,0.00024795,4]
[392965447,1762185044858,-150.0,0.00024795,2]
[392965448,1762185044869,-150.0,0.00024795,2]
[392965449,1762185044879,-150.0,0.00024795,2]
[392965450,1762185044888,-150.0,0.00024795,2]
[392965451,1762185044898,-150.0,0.00024795,2]
[392965452,1762185044909,-150.0,0.00024795,2]
[392965453,1762185044919,-150.0,0.00024795,2]
[392965454,1762185044929,-150.0,0.00024795,2]
[392965455,1762185044939,-150.0,0.00024795,2]
[392965456,1762185044948,-152.07242879,0.00024795,2]
[392965457,1762185044959,-150.0,0.00024795,2]
[392965458,1762185044969,-151.06236005,0.00024795,2]
[392965459,1762185044979,-150.0,0.00024795,2]
[392965460,1762185044988,-151.17478902,0.00024795,2]
[392965461,1762185045000,-252.13442226,0.00024795,2]
[392965462,1762185045012,-150.0,0.00024795,2]
[392965463,1762185045022,-150.0,0.00024795,2]
[392965464,1762185045032,-150.0,0.00024795,2]
[392965465,1762185045042,-152.50384114,0.00024795,2]
[392965466,1762185045056,-151.90277291,0.00024795,2]
[392965467,1762185045066,-150.0,0.00024795,2]
[392965468,1762185045076,-150.0,0.00024795,2]
[392965469,1762185045086,-150.0,0.00024795,2]
[392965470,1762185045097,-500.0,0.00024795,2]
[392965471,1762185045107,-250.70575794,0.00024795,2]
[392965472,1762185045116,-150.0,0.00024795,2]
[392965473,1762185045126,-500.0,0.00024795,2]
[392965474,1762185045136,-150.0,0.00024795,2]
[392965475,1762185045146,-150.0,0.00024795,2]
[392965476,1762185045155,-150.0,0.00024795,2]
[392965477,1762185045165,-150.0,0.00024795,2]
[392965478,1762185045175,-500.0,0.00024795,2]
[392965479,1762185045184,-150.0,0.00024795,2]
[392965480,1762185045194,-150.0,0.00024795,2]
[392965481,1762185045204,-150.0,0.00024795,2]
[392965482,1762185045215,-150.0,0.00024795,2]
[392965485,1762185045225,-150.0,0.00024795,2]
[392965486,1762185045234,-151.0,0.00024797,7]
[392965489,1762185045244,-500.0,0.00024799,2]
[392965491,1762185045254,-500.0,0.00024799,2]
[392965493,1762185045264,-500.0,0.00024799,2]
[392965495,1762185045273,-624514.721282,0.000248,3]
[392965497,1762185045282,-893.11000058,0.00024832,2]
[392965499,1762185045292,-3420.0,0.00024834,2]
[392965501,1762185045305,-2427.2535584,0.00024874,2]
[392965502,1762185045314,-200.0,0.000249,2]
[392965504,1762185045323,-267.20910614,0.000249,3]
[392965506,1762185045333,-314.25445056,0.000249,3]
[392965510,1762185045342,-6310.06,0.000249,7]
[392965514,1762185045352,-152.0,0.000249,3]
[392965518,1762185045362,-1239.0,0.000249,3]
[392965520,1762185045372,-1239.0,0.000249,3]
[392965523,1762185045382,-1239.0,0.000249,3]
[392965526,1762185045392,-825.0,0.000249,3]
[392965528,1762185045401,-1239.0,0.000249,3]
[392965530,1762185045410,-465.61920752,0.000249,3]
[392965532,1762185045419,-1239.0,0.000249,3]
[392965534,1762185045428,-616058.465525,0.000249,3]
[392965535,1762185045438,-276.55479921,0.00024932,2]
[392965537,1762185045447,-150.0,0.00024932,2]
[392965539,1762185045456,-150.0,0.00024932,2]
[392965540,1762185045465,-150.0,0.00024932,2]
[392965541,1762185045475,-150.0,0.00024932,2]
[392965542,1762185045484,-150.0,0.00024932,2]
[392965543,1762185045495,-232.31455886,0.00024932,2]
[392965545,1762185045504,-150.0,0.00024932,2]
[392965547,1762185045514,-150.0,0.00024932,2]
[392965549,1762185045523,-500.0,0.00024932,2]
[392965551,1762185045532,-500.0,0.00024932,2]
[392965553,1762185045541,-150.0,0.00024932,2]
[392965555,1762185045555,-600.0,0.00024932,2]
[392965557,1762185045564,-150.0,0.00024932,2]
[392965559,1762185045573,-150.0,0.00024932,2]
[392965561,1762185045583,-150.0,0.00024932,2]
[392965563,1762185045592,-300.0,0.00024961,2]
[392965565,1762185045602,-2001.09538803,0.00025,3]
[392965567,1762185045612,-450.0,0.00025,2]
[392965569,1762185045621,-1005.62,0.00025,2]
[392965571,1762185045630,-226.36588681,0.00025018,4]
[392965573,1762185045640,-150.0,0.00025069,2]
[392965575,1762185045649,-500.0,0.00025069,2]
[392965576,1762185045659,-500.0,0.00025069,2]
[392965577,1762185045668,-150.0,0.00025069,2]
[392965578,1762185045678,-163.38731801,0.00025069,2]
[392965579,1762185045687,-150.0,0.00025069,2]
[392965580,1762185045699,-200.0,0.00025149,2]
[392965581,1762185045710,-600.0,0.0002515,7]
[392965582,1762185045719,-500.0,0.00025205,7]
[392965583,1762185045729,-200.0,0.00025206,2]
[392965584,1762185045740,-500.0,0.00025206,2]
[392965585,1762185045750,-500.0,0.00025206,2]
[392965586,1762185045760,-150.0,0.00025206,2]
[392965587,1762185045770,-200.0,0.00025206,2]
[392965588,1762185045780,-218.81762333,0.00025216,7]
[392965589,1762185045790,-600.0,0.00025242,7]
[392965590,1762185045801,-500.0,0.0002525,7]
[392965591,1762185045811,-600.0,0.00025265,7]
[392965592,1762185045821,-500.0,0.00025293,7]
[392965593,1762185045831,-500.0,0.00025343,2]
[392965594,1762185045840,-500.0,0.00025343,2]
[392965595,1762185045850,-200.0,0.00025343,2]
[392965596,1762185045859,-1300.0,0.00025343,7]
[392965597,1762185045869,-500.0,0.00025346,7]
[392965598,1762185045877,-200.0,0.000254,2]
[392965599,1762185045887,-500.0,0.00025413,7]
[392965600,1762185045896,-500.0,0.00025435,7]
[392965601,1762185045906,-500.0,0.00025464,7]
[392965602,1762185045915,-376.94406514,0.0002548,2]
[392965603,1762185045925,-500.0,0.0002548,2]
[392965604,1762185045934,-477.5520043,0.000255,3]
[392965605,1762185045944,-1005.62,0.000255,2]
[392965606,1762185045953,-1300.0,0.00025561,7]
[392965607,1762185045963,-264.82931598,0.00025566,2]
[392965608,1762185045972,-4731.40423,0.0002558,2]
[392965610,1762185045981,-500.0,0.00025589,7]
[392965611,1762185045991,-500.0,0.00025602,7]
[392965612,1762185046000,-500.0,0.00025617,2]
[392965613,1762185046009,-500.0,0.00025635,7]
[392965614,1762185046018,-600.0,0.00025668,7]
[392965615,1762185046028,-500.0,0.00025699,7]
[392965616,1762185046037,-398.38593079,0.00025754,2]
[392965617,1762185046046,-600.0,0.00025863,7]
[392965618,1762185046059,-500.0,0.00025866,2]
[392965620,1762185046068,-1639.93346924,0.00025871,2]
[392965622,1762185046077,-4576.10204217,0.00025871,2]
[392965624,1762185046089,-500.0,0.00025881,7]
[392965626,1762185046098,-179.53219072,0.00025883,30]
[392965627,1762185046108,-1000.0,0.000259,2]
[392965628,1762185046117,-409.99107432,0.00025911,2]
[392965629,1762185046127,-1571.65517801,0.00026,10]
[392965630,1762185046136,-1000.0,0.00026027,2]
[392965631,1762185046146,-600.0,0.00026035,7]
[392965632,1762185046157,-500.0,0.0002607,7]
[392965633,1762185046167,-500.0,0.0002609,7]
[392965634,1762185046177,-387.96176557,0.00026096,2]
[392965635,1762185046186,-6310.06,0.000261,7]
[392965636,1762185046196,-150.0,0.00026165,2]
[392965637,1762185046206,-1654.6724637,0.00026166,2]
[392965638,1762185046216,-150.0,0.00026173,2]
[392965639,1762185046227,-500.0,0.00026173,7]
[392965640,1762185046237,-500.0,0.00026185,7]
[392965641,1762185046247,-6081.3059476,0.00026297,2]
[392965642,1762185046257,-8963.5789866,0.00026301,2]
[392965644,1762185046268,-1000.0,0.00026301,2]
[392965646,1762185046278,-300.0,0.0002633,2]
[392965648,1762185046287,-500.0,0.0002634,7]
[392965649,1762185046297,-500.0,0.00026353,7]
[392965651,1762185046311,-500.0,0.00026356,7]
[392965652,1762185046321,-579.31160827,0.00026362,7]
[392965653,1762185046331,-500.0,0.00026368,7]
[392965654,1762185046341,-500.0,0.00026449,7]
[392965655,1762185046350,-1300.0,0.0002648,7]
[392965656,1762185046360,-600.0,0.00026518,7]
[392965657,1762185046370,-500.0,0.00026536,7]
[392965658,1762185046380,-1000.0,0.00026575,2]
[392965659,1762185046389,-4731.40423,0.0002658,2]
[392965660,1762185046399,-600.0,0.00026604,7]
[392965661,1762185046408,-237.50545482,0.00026616,2]
[392965663,1762185046418,-500.0,0.00026617,7]
[392965665,1762185046427,-38619.9983514,0.00026626,2]
[392965667,1762185046437,-500.0,0.00026657,7]
[392965669,1762185046446,-163.42953466,0.00026662,2]
[392965671,1762185046456,-1000.0,0.00026676,2]
[392965673,1762185046465,-250.0,0.00026721,2]
[392965675,1762185046475,-600.0,0.00026723,7]
[392965677,1762185046485,-1300.0,0.00026772,7]
[392965679,1762185046495,-500.0,0.00026784,7]
[392965681,1762185046505,-500.0,0.0002679,7]
[392965688,1762185046562,-1000.0,0.000268,2]
[392965690,1762185046573,-1300.0,0.00026845,7]
[392965692,1762185046582,-1000.0,0.00026849,2]
[392965694,1762185046592,-369.2073318,0.00026965,2]
[392965696,1762185046601,-500.0,0.00026975,7]
[392965698,1762185046611,-500.0,0.00026996,7]
[392965700,1762185046621,-500.0,0.00027,2]
[392965702,1762185046630,-500.0,0.00027032,7]
[392965704,1762185046639,-500.0,0.00027047,7]
[392965706,1762185046649,-1000.0,0.00027123,2]
[392965708,1762185046658,-1356.92277,0.00027125,2]
[392965710,1762185046669,-1300.0,0.00027129,7]
[392965712,1762185046678,-2000.0448147,0.00027131,2]
[392965714,1762185046687,-500.0,0.00027185,7]
[392965716,1762185046699,-1300.0,0.0002719,7]
[392965718,1762185046712,-600.0,0.00027204,7]
[392965721,1762185046722,-500.0,0.00027238,7]
[392965723,1762185046731,-329.14410644,0.00027269,2]
[392965724,1762185046742,-600.0,0.0002729,7]
[392965727,1762185046751,-2000.0,0.000273,2]
[392965729,1762185046761,-6310.06,0.000273,7]
[392965731,1762185046770,-500.0,0.00027313,7]
[392965733,1762185046781,-477.5520043,0.00027343,7]
[392965735,1762185046791,-500.0,0.00027344,7]
[392965737,1762185046804,-1300.0,0.00027349,7]
[392965739,1762185046813,-500.0,0.0002735,7]
[392965741,1762185046823,-500.0,0.00027361,7]
[392965743,1762185046832,-150.0,0.00027369,2]
[392965745,1762185046842,-300.0,0.00027397,7]
[392965747,1762185046852,-300.0,0.00027397,2]
[392965749,1762185046861,-1427.95,0.00027397,2]
[392965751,1762185046870,-816.32,0.00027397,2]
[392965753,1762185046880,-350.0,0.00027397,7]
[392965755,1762185046889,-181.3,0.00027397,10]
[392965757,1762185046898,-1000.0,0.00027397,2]
[392965759,1762185046908,-438.54,0.000274,7]
[392965761,1762185046917,-526.81,0.000274,7]
[392965763,1762185046927,-2108.89,0.000274,2]
[392965765,1762185046937,-500.0,0.00027435,7]
[392965767,1762185046946,-1300.0,0.00027476,7]
[392965769,1762185046956,-600.0,0.00027497,7]
[392965771,1762185046966,-1300.0,0.00027525,7]
[392965773,1762185046975,-8617.286417,0.00027528,2]
[392965775,1762185046984,-300.0,0.00027534,7]
[392965777,1762185046996,-150.0,0.00027535,2]
[392965779,1762185047005,-4731.40423,0.0002758,2]
[392965781,1762185047015,-500.0,0.00027585,7]
[392965783,1762185047025,-165.19797327,0.00027617,7]
[392965786,1762185047035,-500.0,0.00027619,7]
[392965788,1762185047045,-393.40339811,0.00027668,7]
[392965790,1762185047059,-208.2,0.00027671,7]
[392965792,1762185047068,-1000.0,0.00027671,2]
[392965793,1762185047078,-1639.93346924,0.00027716,2]
[392965795,1762185047089,-4576.10204217,0.00027716,2]
[392965798,1762185047099,-500.0,0.00027723,7]
[392965800,1762185047108,-517.17,0.00027757,120]
[392965802,1762185047118,-1300.0,0.00027786,7]
[392965804,1762185047128,-500.0,0.00027788,7]
[392965806,1762185047138,-500.0,0.00027824,7]
[392965808,1762185047148,-500.0,0.00027857,7]
[392965809,1762185047157,-500.0,0.00027871,7]
[392965812,1762185047167,-500.0,0.00027871,7]
[392965814,1762185047176,-500.0,0.00027874,7]
[392965815,1762185047186,-1300.0,0.00027881,7]
[392965817,1762185047195,-1300.0,0.00027917,7]
[392965819,1762185047205,-208.2,0.00027945,8]
[392965821,1762185047214,-1000.0,0.00027945,2]
[392965824,1762185047224,-500.0,0.00027975,7]
[392965826,1762185047234,-600.0,0.00027992,7]
[392965828,1762185047244,-284.64471258,0.00028,60]
[392965830,1762185047253,-500.0,0.00028028,7]
[392965832,1762185047263,-500.0,0.00028189,7]
[392965834,1762185047273,-1300.0,0.00028194,7]
[392965836,1762185047283,-2108.89,0.000282,2]
[392965837,1762185047292,-208.2,0.00028219,9]
[392965839,1762185047307,-1000.0,0.00028219,2]
[392965841,1762185047317,-500.0,0.00028248,7]
[392965844,1762185047327,-500.0,0.00028318,7]
[392965846,1762185047337,-526.81,0.000284,7]
[392965848,1762185047346,-6310.06,0.000284,7]
[392965849,1762185047355,-500.0,0.0002844,7]
[392965852,1762185047365,-500.0,0.0002844,7]
[392965854,1762185047375,-500.0,0.00028442,7]
[392965856,1762185047385,-600.0,0.00028446,7]
[392965858,1762185047394,-208.2,0.00028493,10]
[392965860,1762185047404,-1000.0,0.00028493,2]
[392965861,1762185047413,-438.54,0.000285,7]
[392965864,1762185047423,-500.0,0.00028511,7]
[392965866,1762185047433,-500.0,0.00028532,7]
[392965868,1762185047442,-210.92218601,0.00028555,7]
[392965869,1762185047451,-2992.21695538,0.0002858,2]